[Event "*** Titled Tuesday Blitz"]
[Site "Chess.com"]
[Date "2020.05.12"]
[Round "5"]
[White "SameerMujumdar"]
[Black "calin_dragomirescu"]
[Result "1-0"]
[WhiteElo "2182"]
[BlackElo "2291"]
[TimeControl "180+1"]
[EndTime "10:53:15 PDT"]
[Termination "SameerMujumdar won by checkmate"]

1. e4 {[%clk 0:03:00.9]} 1... g6 {[%clk 0:03:00.1]} 2. d4 {[%clk 0:02:58]} 2...
Bg7 {[%clk 0:03:00.4]} 3. Nc3 {[%clk 0:02:56.4]} 3... d6 {[%clk 0:03:00.7]} 4.
Nf3 {[%clk 0:02:55.3]} 4... Nf6 {[%clk 0:02:58.9]} 5. h3 {[%clk 0:02:54.6]} 5...
O-O {[%clk 0:02:58.7]} 6. Be3 {[%clk 0:02:50.5]} 6... c6 {[%clk 0:02:58.9]} 7.
Qd2 {[%clk 0:02:49.2]} 7... b5 {[%clk 0:02:58]} 8. Bd3 {[%clk 0:02:47.4]} 8...
Nbd7 {[%clk 0:02:57.3]} 9. Bh6 {[%clk 0:02:45.8]} 9... e5 {[%clk 0:02:57.3]} 10.
Bxg7 {[%clk 0:02:45.2]} 10... Kxg7 {[%clk 0:02:57.2]} 11. O-O-O {[%clk
0:02:44.5]} 11... Qa5 {[%clk 0:02:53.7]} 12. Kb1 {[%clk 0:02:41.1]} 12... Rb8
{[%clk 0:02:50.5]} 13. g4 {[%clk 0:02:27.4]} 13... b4 {[%clk 0:02:50.3]} 14. Ne2
{[%clk 0:02:26]} 14... exd4 {[%clk 0:02:45.7]} 15. Nexd4 {[%clk 0:02:23.6]}
15... Qb6 {[%clk 0:02:41.6]} 16. Qf4 {[%clk 0:02:14]} 16... Nc5 {[%clk
0:02:29.4]} 17. g5 {[%clk 0:02:04.9]} 17... Ne8 {[%clk 0:02:22.8]} 18. h4 {[%clk
0:01:59.2]} 18... Na4 {[%clk 0:02:22.7]} 19. h5 {[%clk 0:01:55.8]} 19... Nc3+
{[%clk 0:02:16.6]} 20. bxc3 {[%clk 0:01:54.6]} 20... bxc3+ {[%clk 0:02:15.5]}
21. Nb3 {[%clk 0:01:55.5]} 21... a5 {[%clk 0:02:14.2]} 22. hxg6 {[%clk
0:01:53.4]} 22... fxg6 {[%clk 0:02:12.6]} 23. Qh4 {[%clk 0:01:43.7]} 23... Kf7
{[%clk 0:01:55.7]} 24. Bc4+ {[%clk 0:01:22.1]} 24... d5 {[%clk 0:01:52.8]} 25.
Qxh7+ {[%clk 0:01:17.3]} 25... Ng7 {[%clk 0:01:49.4]} 26. Ne5+ {[%clk
0:01:16.9]} 26... Ke6 {[%clk 0:01:48.3]} 27. exd5+ {[%clk 0:01:14.7]} 27... Kxe5
{[%clk 0:01:45.7]} 28. Rhe1+ {[%clk 0:01:14.1]} 28... Kf4 {[%clk 0:01:44]} 29.
Qxg7 {[%clk 0:01:11.5]} 29... Bf5 {[%clk 0:01:43.3]} 30. Rd4+ {[%clk 0:00:58.6]}
30... Kxg5 {[%clk 0:01:39.8]} 31. Qe7+ {[%clk 0:00:57.9]} 31... Kh6 {[%clk
0:01:29.9]} 32. Rh4# {[%clk 0:00:54.2]} 1-0

[Event "*** Titled Tuesday Blitz"]
[Site "Chess.com"]
[Date "2020.05.12"]
[Round "5"]
[White "Chess2019Player"]
[Black "DanielTitichoca"]
[Result "0-1"]
[WhiteElo "2184"]
[BlackElo "2353"]
[TimeControl "180+1"]
[EndTime "10:53:20 PDT"]
[Termination "DanielTitichoca won on time"]

1. e4 {[%clk 0:03:00.9]} 1... g6 {[%clk 0:03:00.9]} 2. d4 {[%clk 0:02:57]} 2...
Bg7 {[%clk 0:02:59.1]} 3. Nc3 {[%clk 0:02:57.5]} 3... d6 {[%clk 0:02:52.9]} 4.
g3 {[%clk 0:02:44.7]} 4... a6 {[%clk 0:02:52]} 5. a4 {[%clk 0:02:41.4]} 5... b6
{[%clk 0:02:51.4]} 6. Bg2 {[%clk 0:02:40.8]} 6... Bb7 {[%clk 0:02:51.8]} 7. Nge2
{[%clk 0:02:41.2]} 7... Nf6 {[%clk 0:02:46.9]} 8. O-O {[%clk 0:02:41.3]} 8... c5
{[%clk 0:02:40.6]} 9. h3 {[%clk 0:02:41.1]} 9... cxd4 {[%clk 0:02:39.7]} 10.
Nxd4 {[%clk 0:02:41.3]} 10... O-O {[%clk 0:02:39]} 11. Be3 {[%clk 0:02:41.4]}
11... Nbd7 {[%clk 0:02:39]} 12. Qd2 {[%clk 0:01:52.4]} 12... Nc5 {[%clk
0:02:30.9]} 13. Nd5 {[%clk 0:01:50.8]} 13... Nfxe4 {[%clk 0:02:29.2]} 14. Qe2
{[%clk 0:01:20.1]} 14... Bxd5 {[%clk 0:02:26.6]} 15. b4 {[%clk 0:01:17.8]} 15...
Nc3 {[%clk 0:02:21.7]} 16. Qe1 {[%clk 0:01:11.8]} 16... Bxg2 {[%clk 0:02:20.7]}
17. Kxg2 {[%clk 0:01:10.8]} 17... N5xa4 {[%clk 0:02:17.9]} 18. Ra3 {[%clk
0:00:53.4]} 18... Qc7 {[%clk 0:02:11.7]} 19. Kh2 {[%clk 0:00:28.1]} 19... b5
{[%clk 0:02:04.2]} 20. Nf3 {[%clk 0:00:26.6]} 20... Nd5 {[%clk 0:02:01.9]} 21.
Bc1 {[%clk 0:00:18.5]} 21... Qxc2 {[%clk 0:02:00.6]} 0-1

[Event "*** Titled Tuesday Blitz"]
[Site "Chess.com"]
[Date "2020.05.12"]
[Round "5"]
[White "pedromartinez91"]
[Black "tufferguy"]
[Result "0-1"]
[WhiteElo "2496"]
[BlackElo "2377"]
[TimeControl "180+1"]
[EndTime "10:53:24 PDT"]
[Termination "tufferguy won by resignation"]

1. b3 {[%clk 0:03:00.9]} 1... e5 {[%clk 0:02:55.7]} 2. Bb2 {[%clk 0:03:00.2]}
2... Nc6 {[%clk 0:02:54.8]} 3. e3 {[%clk 0:03:00.3]} 3... Nf6 {[%clk 0:02:55]}
4. Bb5 {[%clk 0:03:00.3]} 4... e4 {[%clk 0:02:55.4]} 5. f3 {[%clk 0:02:58.7]}
5... d5 {[%clk 0:02:44.8]} 6. fxe4 {[%clk 0:02:54.4]} 6... dxe4 {[%clk
0:02:38.8]} 7. Ne2 {[%clk 0:02:54.3]} 7... Bd6 {[%clk 0:02:35.1]} 8. O-O {[%clk
0:02:43.9]} 8... Bxh2+ {[%clk 0:01:59.9]} 9. Kxh2 {[%clk 0:02:44.8]} 9... Ng4+
{[%clk 0:02:00.1]} 10. Kg1 {[%clk 0:02:42.1]} 10... Qh4 {[%clk 0:01:56.3]} 11.
Bxc6+ {[%clk 0:02:34.4]} 11... bxc6 {[%clk 0:01:55.1]} 12. Be5 {[%clk
0:02:34.9]} 12... Nxe5 {[%clk 0:01:52.4]} 13. Qe1 {[%clk 0:02:35.4]} 13... Qg4
{[%clk 0:01:16.7]} 14. Rf4 {[%clk 0:02:33.6]} 14... Nf3+ {[%clk 0:01:16.1]} 15.
Kf2 {[%clk 0:02:17.8]} 15... Nxe1 {[%clk 0:01:08.6]} 16. Rxg4 {[%clk 0:02:18.3]}
16... Bxg4 {[%clk 0:00:56.8]} 17. Kxe1 {[%clk 0:02:17.9]} 17... Bxe2 {[%clk
0:00:56.9]} 18. Kxe2 {[%clk 0:02:18.8]} 18... f5 {[%clk 0:00:57.1]} 19. Nc3
{[%clk 0:02:18.9]} 19... Ke7 {[%clk 0:00:57.4]} 20. Rf1 {[%clk 0:02:16.9]} 20...
Raf8 {[%clk 0:00:55.6]} 21. b4 {[%clk 0:02:13.6]} 21... h5 {[%clk 0:00:55.1]}
22. Kf2 {[%clk 0:02:07.2]} 22... g5 {[%clk 0:00:54.8]} 23. Ne2 {[%clk
0:02:07.8]} 23... h4 {[%clk 0:00:46.3]} 24. Nd4 {[%clk 0:02:07.8]} 24... f4
{[%clk 0:00:44.4]} 25. Re1 {[%clk 0:02:03.8]} 25... f3 {[%clk 0:00:38.9]} 26.
Nxc6+ {[%clk 0:01:55.4]} 26... Kd6 {[%clk 0:00:38.5]} 27. Nd4 {[%clk 0:01:54.8]}
27... g4 {[%clk 0:00:35.6]} 28. gxf3 {[%clk 0:01:50.9]} 28... exf3 {[%clk
0:00:35]} 29. e4 {[%clk 0:01:46.9]} 29... g3+ {[%clk 0:00:34.9]} 30. Ke3 {[%clk
0:01:46.6]} 30... f2 {[%clk 0:00:35]} 31. Rb1 {[%clk 0:01:45.5]} 31... g2 {[%clk
0:00:34.3]} 32. Nf5+ {[%clk 0:01:43.4]} 32... Rxf5 {[%clk 0:00:34.4]} 33. exf5
{[%clk 0:01:44]} 0-1

[Event "*** Titled Tuesday Blitz"]
[Site "Chess.com"]
[Date "2020.05.12"]
[Round "5"]
[White "bancsoo"]
[Black "vladislavkovalev"]
[Result "0-1"]
[WhiteElo "2757"]
[BlackElo "2914"]
[TimeControl "180+1"]
[EndTime "10:53:46 PDT"]
[Termination "vladislavkovalev won by resignation"]

1. d4 {[%clk 0:03:00.9]} 1... Nf6 {[%clk 0:03:00]} 2. Nf3 {[%clk 0:03:00.4]}
2... e6 {[%clk 0:03:00.5]} 3. g3 {[%clk 0:03:00.4]} 3... d5 {[%clk 0:03:01.1]}
4. Bg2 {[%clk 0:03:00.4]} 4... Be7 {[%clk 0:03:01.7]} 5. c4 {[%clk 0:03:00]}
5... O-O {[%clk 0:03:02.1]} 6. Nc3 {[%clk 0:03:00.7]} 6... Nbd7 {[%clk
0:03:01.8]} 7. O-O {[%clk 0:02:55.2]} 7... dxc4 {[%clk 0:03:01.3]} 8. e4 {[%clk
0:02:51.4]} 8... b5 {[%clk 0:03:00.8]} 9. e5 {[%clk 0:02:34.4]} 9... Nd5 {[%clk
0:02:59]} 10. Nxb5 {[%clk 0:02:34.4]} 10... c5 {[%clk 0:02:45.4]} 11. Nc3 {[%clk
0:02:30.2]} 11... Bb7 {[%clk 0:02:42.8]} 12. Qe2 {[%clk 0:02:22.8]} 12... cxd4
{[%clk 0:02:29]} 13. Nxd4 {[%clk 0:02:21.6]} 13... Nxc3 {[%clk 0:02:29.7]} 14.
bxc3 {[%clk 0:02:21.7]} 14... Bxg2 {[%clk 0:02:30.6]} 15. Kxg2 {[%clk
0:02:22.4]} 15... Qc7 {[%clk 0:02:24.5]} 16. f4 {[%clk 0:02:06.7]} 16... Rab8
{[%clk 0:02:24.8]} 17. h4 {[%clk 0:02:00.2]} 17... Nc5 {[%clk 0:02:12.4]} 18. f5
{[%clk 0:01:57.2]} 18... exf5 {[%clk 0:02:00]} 19. Nxf5 {[%clk 0:01:57.2]} 19...
Nd3 {[%clk 0:02:00.5]} 20. Qg4 {[%clk 0:01:28.9]} 20... g6 {[%clk 0:02:00.7]}
21. Bg5 {[%clk 0:01:05.4]} 21... Rb2+ {[%clk 0:01:54.6]} 22. Kh3 {[%clk
0:00:58.7]} 22... Bxg5 {[%clk 0:01:41.5]} 23. Qxg5 {[%clk 0:00:55.6]} 23... Nf2+
{[%clk 0:01:41.9]} 24. Rxf2 {[%clk 0:00:42.9]} 24... Rxf2 {[%clk 0:01:42.8]} 25.
Ne7+ {[%clk 0:00:19.7]} 25... Kg7 {[%clk 0:01:34]} 26. Qe3 {[%clk 0:00:19.5]}
26... Qd7+ {[%clk 0:01:28.3]} 27. g4 {[%clk 0:00:18.7]} 27... Qd3 {[%clk
0:01:28.7]} 0-1

[Event "*** Titled Tuesday Blitz"]
[Site "Chess.com"]
[Date "2020.05.12"]
[Round "5"]
[White "bmt011"]
[Black "JozefKneht"]
[Result "0-1"]
[WhiteElo "2068"]
[BlackElo "2372"]
[TimeControl "180+1"]
[EndTime "10:53:47 PDT"]
[Termination "JozefKneht won by checkmate"]

1. d4 {[%clk 0:03:00.9]} 1... d5 {[%clk 0:02:58.5]} 2. Bf4 {[%clk 0:03:01.3]}
2... Nf6 {[%clk 0:02:57.7]} 3. e3 {[%clk 0:03:00.3]} 3... c5 {[%clk 0:02:57.7]}
4. c3 {[%clk 0:02:59]} 4... Nc6 {[%clk 0:02:58.2]} 5. Nf3 {[%clk 0:02:56.4]}
5... Qb6 {[%clk 0:02:56.9]} 6. Qb3 {[%clk 0:02:44.9]} 6... c4 {[%clk 0:02:56.9]}
7. Qc2 {[%clk 0:02:44.9]} 7... Bf5 {[%clk 0:02:55.8]} 8. Qc1 {[%clk 0:02:45.2]}
8... e6 {[%clk 0:02:55.5]} 9. Nbd2 {[%clk 0:02:45.4]} 9... Qd8 {[%clk
0:02:52.7]} 10. b3 {[%clk 0:02:42.6]} 10... b5 {[%clk 0:02:52]} 11. Ne5 {[%clk
0:02:24.5]} 11... Nxe5 {[%clk 0:02:50.9]} 12. dxe5 {[%clk 0:02:22.6]} 12... Ne4
{[%clk 0:02:42.4]} 13. a4 {[%clk 0:02:17.2]} 13... a6 {[%clk 0:02:30.7]} 14. f3
{[%clk 0:02:13.7]} 14... Nc5 {[%clk 0:02:28.6]} 15. axb5 {[%clk 0:02:02.5]}
15... axb5 {[%clk 0:02:26.3]} 16. Rxa8 {[%clk 0:02:03]} 16... Qxa8 {[%clk
0:02:25.5]} 17. b4 {[%clk 0:01:40.7]} 17... Nd3+ {[%clk 0:02:15.5]} 18. Bxd3
{[%clk 0:01:40.5]} 18... Bxd3 {[%clk 0:02:16.4]} 19. Kf2 {[%clk 0:01:41]} 19...
Be7 {[%clk 0:02:15.5]} 20. Qa1 {[%clk 0:01:36.3]} 20... Kd7 {[%clk 0:02:15.4]}
21. g4 {[%clk 0:01:06]} 21... Kc6 {[%clk 0:02:01.6]} 22. e4 {[%clk 0:00:59.4]}
22... d4 {[%clk 0:01:59.9]} 23. cxd4 {[%clk 0:00:58]} 23... Qxa1 {[%clk
0:01:57]} 24. Rxa1 {[%clk 0:00:49.3]} 24... Bxb4 {[%clk 0:01:57.4]} 25. Ra7
{[%clk 0:00:45.6]} 25... Bc3 {[%clk 0:01:53.4]} 26. Ke3 {[%clk 0:00:45.1]} 26...
b4 {[%clk 0:01:52.6]} 27. Rxf7 {[%clk 0:00:41.9]} 27... Ra8 {[%clk 0:01:51.2]}
28. Rxg7 {[%clk 0:00:37.5]} 28... Ra2 {[%clk 0:01:50.6]} 29. d5+ {[%clk
0:00:27]} 29... exd5 {[%clk 0:01:32.1]} 30. exd5+ {[%clk 0:00:26]} 30... Kxd5
{[%clk 0:01:32.2]} 31. Ne4 {[%clk 0:00:26.3]} 31... Re2# {[%clk 0:01:29.8]} 0-1

[Event "*** Titled Tuesday Blitz"]
[Site "Chess.com"]
[Date "2020.05.12"]
[Round "5"]
[White "LionTheLeon_06"]
[Black "zmeeed67"]
[Result "1-0"]
[WhiteElo "2671"]
[BlackElo "2426"]
[TimeControl "180+1"]
[EndTime "10:53:50 PDT"]
[Termination "LionTheLeon_06 won by resignation"]

1. Nf3 {[%clk 0:03:00.9]} 1... d5 {[%clk 0:02:59.8]} 2. g3 {[%clk 0:03:01.1]}
2... Nf6 {[%clk 0:03:00.1]} 3. Bg2 {[%clk 0:03:00.7]} 3... c5 {[%clk 0:03:00.2]}
4. O-O {[%clk 0:02:59]} 4... Nc6 {[%clk 0:03:00.7]} 5. d3 {[%clk 0:02:59.3]}
5... e6 {[%clk 0:03:00.3]} 6. b3 {[%clk 0:02:55.4]} 6... Be7 {[%clk 0:02:59.3]}
7. c4 {[%clk 0:02:55.5]} 7... O-O {[%clk 0:02:47.4]} 8. Bb2 {[%clk 0:02:54]}
8... d4 {[%clk 0:02:46.4]} 9. e3 {[%clk 0:02:54]} 9... dxe3 {[%clk 0:02:45.4]}
10. fxe3 {[%clk 0:02:53.9]} 10... Qc7 {[%clk 0:02:28.4]} 11. d4 {[%clk
0:02:52.5]} 11... cxd4 {[%clk 0:01:56.8]} 12. exd4 {[%clk 0:02:52.1]} 12... Rd8
{[%clk 0:01:57.3]} 13. Qe2 {[%clk 0:02:35.6]} 13... b6 {[%clk 0:01:51.8]} 14.
Nc3 {[%clk 0:02:29.9]} 14... Bb7 {[%clk 0:01:49.8]} 15. Rad1 {[%clk 0:02:29.9]}
15... Rac8 {[%clk 0:01:31.6]} 16. Kh1 {[%clk 0:02:27.7]} 16... Qb8 {[%clk
0:01:31.4]} 17. d5 {[%clk 0:02:20.1]} 17... Nb4 {[%clk 0:00:27]} 18. dxe6 {[%clk
0:02:17.3]} 18... Re8 {[%clk 0:00:27.2]} 19. exf7+ {[%clk 0:02:11.3]} 19... Kxf7
{[%clk 0:00:28.1]} 20. Ng5+ {[%clk 0:02:09.4]} 20... Kg6 {[%clk 0:00:19.5]} 21.
Nce4 {[%clk 0:01:48.6]} 21... Nxe4 {[%clk 0:00:15.2]} 22. Nxe4 {[%clk
0:01:45.1]} 22... h6 {[%clk 0:00:10]} 23. Qg4+ {[%clk 0:01:44.5]} 23... Bg5
{[%clk 0:00:10.5]} 24. Qf5+ {[%clk 0:01:30]} 1-0

[Event "*** Titled Tuesday Blitz"]
[Site "Chess.com"]
[Date "2020.05.12"]
[Round "5"]
[White "attack2mateU"]
[Black "LiemLe"]
[Result "0-1"]
[WhiteElo "2621"]
[BlackElo "2950"]
[TimeControl "180+1"]
[EndTime "10:53:53 PDT"]
[Termination "LiemLe won by resignation"]

1. e4 {[%clk 0:03:00.9]} 1... e5 {[%clk 0:02:59.3]} 2. Nf3 {[%clk 0:03:00.9]}
2... Nc6 {[%clk 0:02:59.2]} 3. Bb5 {[%clk 0:03:01.2]} 3... a6 {[%clk 0:02:59.4]}
4. Ba4 {[%clk 0:03:01.5]} 4... Nf6 {[%clk 0:02:59.1]} 5. O-O {[%clk 0:03:00.8]}
5... Bc5 {[%clk 0:02:58.7]} 6. d3 {[%clk 0:02:53.5]} 6... b5 {[%clk 0:02:58.2]}
7. Bb3 {[%clk 0:02:53.7]} 7... O-O {[%clk 0:02:52.5]} 8. Nc3 {[%clk 0:02:50.3]}
8... h6 {[%clk 0:02:49.7]} 9. Be3 {[%clk 0:02:41.3]} 9... Bxe3 {[%clk
0:02:47.2]} 10. fxe3 {[%clk 0:02:42.2]} 10... d6 {[%clk 0:02:47.5]} 11. Qe1
{[%clk 0:02:36.1]} 11... Na5 {[%clk 0:02:44.2]} 12. Nh4 {[%clk 0:02:31.6]} 12...
Nxb3 {[%clk 0:02:33.3]} 13. axb3 {[%clk 0:02:32.5]} 13... Bd7 {[%clk 0:02:23.5]}
14. h3 {[%clk 0:02:19.5]} 14... g6 {[%clk 0:02:22.8]} 15. Rf3 {[%clk 0:02:16]}
15... Kg7 {[%clk 0:02:18.1]} 16. Qf2 {[%clk 0:02:15.6]} 16... Nh7 {[%clk
0:02:14.4]} 17. Rf1 {[%clk 0:02:04.1]} 17... Be6 {[%clk 0:02:07.6]} 18. b4
{[%clk 0:01:30.5]} 18... c6 {[%clk 0:02:03.1]} 19. d4 {[%clk 0:01:29.7]} 19...
Ng5 {[%clk 0:01:54.8]} 20. Rf6 {[%clk 0:01:29.2]} 20... Bc4 {[%clk 0:01:53.8]}
21. Qg3 {[%clk 0:01:00.8]} 21... Bxf1 {[%clk 0:01:51.9]} 22. Rxf1 {[%clk
0:01:01.7]} 22... Qe7 {[%clk 0:01:32]} 23. d5 {[%clk 0:00:59.4]} 23... c5 {[%clk
0:01:30.3]} 24. bxc5 {[%clk 0:00:58.1]} 24... dxc5 {[%clk 0:01:31.2]} 25. Nf3
{[%clk 0:00:53.9]} 25... b4 {[%clk 0:01:19.4]} 26. Nxg5 {[%clk 0:00:33.2]} 26...
bxc3 {[%clk 0:01:19]} 27. Nf3 {[%clk 0:00:21.9]} 27... cxb2 {[%clk 0:01:19]} 0-1

[Event "*** Titled Tuesday Blitz"]
[Site "Chess.com"]
[Date "2020.05.12"]
[Round "5"]
[White "isla88"]
[Black "Sesleria"]
[Result "1-0"]
[WhiteElo "2292"]
[BlackElo "1979"]
[TimeControl "180+1"]
[EndTime "10:53:55 PDT"]
[Termination "isla88 won by checkmate"]

1. d4 {[%clk 0:03:00.9]} 1... d5 {[%clk 0:02:58.3]} 2. Nc3 {[%clk 0:03:00.4]}
2... Nf6 {[%clk 0:02:54.3]} 3. Bf4 {[%clk 0:02:59.7]} 3... c6 {[%clk 0:02:32.5]}
4. e3 {[%clk 0:02:57.1]} 4... Qb6 {[%clk 0:02:19.1]} 5. a3 {[%clk 0:02:50.2]}
5... Bf5 {[%clk 0:02:05.5]} 6. b4 {[%clk 0:02:39.5]} 6... e6 {[%clk 0:01:56.5]}
7. Nf3 {[%clk 0:02:34.9]} 7... Nbd7 {[%clk 0:01:52]} 8. Ne5 {[%clk 0:02:31.2]}
8... Nxe5 {[%clk 0:01:40.7]} 9. dxe5 {[%clk 0:02:27.6]} 9... Nd7 {[%clk
0:01:29.3]} 10. h4 {[%clk 0:02:24.5]} 10... h6 {[%clk 0:01:17.6]} 11. g4 {[%clk
0:02:22.2]} 11... Bh7 {[%clk 0:01:15.2]} 12. Na4 {[%clk 0:02:18.2]} 12... Qc7
{[%clk 0:01:06.3]} 13. c4 {[%clk 0:02:08.2]} 13... Nxe5 {[%clk 0:00:43.8]} 14.
cxd5 {[%clk 0:02:08.1]} 14... O-O-O {[%clk 0:00:38.5]} 15. Be2 {[%clk 0:01:55]}
15... Rxd5 {[%clk 0:00:32.8]} 16. Qb3 {[%clk 0:01:53.5]} 16... Bd6 {[%clk
0:00:30.2]} 17. O-O {[%clk 0:01:48.1]} 17... Nd3 {[%clk 0:00:28.3]} 18. Bxd6
{[%clk 0:01:39.2]} 18... Qxd6 {[%clk 0:00:28.5]} 19. Rfd1 {[%clk 0:01:38.7]}
19... Nxf2 {[%clk 0:00:22]} 20. Rxd5 {[%clk 0:01:21.9]} 20... Qg3+ {[%clk
0:00:21.4]} 21. Kf1 {[%clk 0:01:18.8]} 21... exd5 {[%clk 0:00:21.2]} 22. b5
{[%clk 0:01:14.4]} 22... Re8 {[%clk 0:00:20.1]} 23. bxc6 {[%clk 0:01:13.3]}
23... Rxe3 {[%clk 0:00:19]} 24. Qxb7+ {[%clk 0:01:08.9]} 24... Kd8 {[%clk
0:00:17.8]} 25. Qd7# {[%clk 0:01:09.8]} 1-0

[Event "*** Titled Tuesday Blitz"]
[Site "Chess.com"]
[Date "2020.05.12"]
[Round "5"]
[White "Borsuk_Konstantin"]
[Black "Baby_Shak"]
[Result "0-1"]
[WhiteElo "2642"]
[BlackElo "2479"]
[TimeControl "180+1"]
[EndTime "10:53:58 PDT"]
[Termination "Baby_Shak won by resignation"]

1. d4 {[%clk 0:03:00.9]} 1... d5 {[%clk 0:02:59.7]} 2. c4 {[%clk 0:03:00.9]}
2... Nc6 {[%clk 0:03:00.2]} 3. Nc3 {[%clk 0:02:55.4]} 3... Nf6 {[%clk
0:02:59.7]} 4. cxd5 {[%clk 0:02:54.4]} 4... Nxd5 {[%clk 0:02:59.4]} 5. e4 {[%clk
0:02:54.8]} 5... Nxc3 {[%clk 0:02:59.3]} 6. bxc3 {[%clk 0:02:54.5]} 6... e5
{[%clk 0:03:00.2]} 7. d5 {[%clk 0:02:53.9]} 7... Nb8 {[%clk 0:02:59.7]} 8. Nf3
{[%clk 0:02:43.9]} 8... Bd6 {[%clk 0:02:58.8]} 9. Be2 {[%clk 0:02:11.6]} 9...
O-O {[%clk 0:02:58.2]} 10. O-O {[%clk 0:02:12.1]} 10... Nd7 {[%clk 0:02:57.5]}
11. Bg5 {[%clk 0:02:04.4]} 11... f6 {[%clk 0:02:55.7]} 12. Be3 {[%clk
0:02:04.9]} 12... Qe7 {[%clk 0:02:55.5]} 13. Nh4 {[%clk 0:01:59.3]} 13... Nc5
{[%clk 0:02:54.3]} 14. Qc2 {[%clk 0:01:57.8]} 14... Qf7 {[%clk 0:02:38.9]} 15.
c4 {[%clk 0:01:38.1]} 15... b6 {[%clk 0:02:30.5]} 16. g4 {[%clk 0:01:21.3]}
16... g6 {[%clk 0:02:09.2]} 17. Kh1 {[%clk 0:01:14.4]} 17... Bd7 {[%clk
0:02:03.5]} 18. Rg1 {[%clk 0:01:11.8]} 18... Kh8 {[%clk 0:02:02.2]} 19. Nf3
{[%clk 0:01:06.9]} 19... Ba4 {[%clk 0:02:00.5]} 20. Qb1 {[%clk 0:01:06]} 20...
Rg8 {[%clk 0:01:35]} 21. Nd2 {[%clk 0:01:04.7]} 21... Raf8 {[%clk 0:01:30.9]}
22. Nb3 {[%clk 0:01:03.7]} 22... Qe7 {[%clk 0:01:21.2]} 23. Rg3 {[%clk
0:00:58.6]} 23... Bd7 {[%clk 0:01:19.2]} 24. Qc2 {[%clk 0:00:56.4]} 24... f5
{[%clk 0:01:18.8]} 25. gxf5 {[%clk 0:00:55.7]} 25... gxf5 {[%clk 0:01:18.6]} 26.
Rxg8+ {[%clk 0:00:56.2]} 26... Rxg8 {[%clk 0:01:18.3]} 27. exf5 {[%clk
0:00:53.3]} 27... Qf6 {[%clk 0:01:13.2]} 28. Nxc5 {[%clk 0:00:51.5]} 28... bxc5
{[%clk 0:01:14.1]} 29. Rg1 {[%clk 0:00:37.1]} 29... Rxg1+ {[%clk 0:01:13]} 30.
Kxg1 {[%clk 0:00:37]} 30... Bxf5 {[%clk 0:01:13.9]} 31. Bd3 {[%clk 0:00:36.9]}
31... Qg6+ {[%clk 0:01:13.3]} 0-1

[Event "*** Titled Tuesday Blitz"]
[Site "Chess.com"]
[Date "2020.05.12"]
[Round "5"]
[White "MYMChessAcademy"]
[Black "AliKa2810"]
[Result "0-1"]
[WhiteElo "2230"]
[BlackElo "2528"]
[TimeControl "180+1"]
[EndTime "10:54:02 PDT"]
[Termination "AliKa2810 won on time"]

1. d4 {[%clk 0:03:00.9]} 1... Nf6 {[%clk 0:02:57.8]} 2. c4 {[%clk 0:03:01.8]}
2... g6 {[%clk 0:02:58.3]} 3. Nf3 {[%clk 0:03:02.3]} 3... Bg7 {[%clk 0:02:58.8]}
4. g3 {[%clk 0:03:03]} 4... O-O {[%clk 0:02:58.8]} 5. Bg2 {[%clk 0:03:03.7]}
5... c5 {[%clk 0:02:58.8]} 6. d5 {[%clk 0:03:01.1]} 6... b5 {[%clk 0:02:58.3]}
7. cxb5 {[%clk 0:02:54.2]} 7... a6 {[%clk 0:02:58.3]} 8. b6 {[%clk 0:02:49.7]}
8... d6 {[%clk 0:02:57.6]} 9. O-O {[%clk 0:02:49.4]} 9... Nbd7 {[%clk
0:02:57.4]} 10. Nc3 {[%clk 0:02:44.7]} 10... Nxb6 {[%clk 0:02:45.3]} 11. e4
{[%clk 0:02:44.5]} 11... a5 {[%clk 0:02:44.8]} 12. Re1 {[%clk 0:02:42.8]} 12...
Nfd7 {[%clk 0:02:33.5]} 13. Bf4 {[%clk 0:02:38.1]} 13... Nc4 {[%clk 0:02:31.7]}
14. Qc2 {[%clk 0:02:34]} 14... Rb8 {[%clk 0:02:23.9]} 15. b3 {[%clk 0:02:31]}
15... Na3 {[%clk 0:02:20]} 16. Qd2 {[%clk 0:02:00.6]} 16... a4 {[%clk
0:02:09.3]} 17. e5 {[%clk 0:01:27.9]} 17... axb3 {[%clk 0:02:03.2]} 18. axb3
{[%clk 0:01:27.3]} 18... Rxb3 {[%clk 0:02:02.4]} 19. Rac1 {[%clk 0:01:19.3]}
19... dxe5 {[%clk 0:01:54.8]} 20. Nxe5 {[%clk 0:01:19.8]} 20... Nxe5 {[%clk
0:01:53.9]} 21. Bxe5 {[%clk 0:01:20.7]} 21... Bxe5 {[%clk 0:01:44.8]} 22. Rxe5
{[%clk 0:01:21.6]} 22... Nc4 {[%clk 0:01:44.6]} 23. Qe2 {[%clk 0:00:42.4]} 23...
Nxe5 {[%clk 0:01:44]} 24. Qxe5 {[%clk 0:00:43.3]} 24... Qd6 {[%clk 0:01:39.4]}
25. Qe2 {[%clk 0:00:40.3]} 25... Ba6 {[%clk 0:01:35.5]} 26. Qa2 {[%clk
0:00:38.3]} 26... Rfb8 {[%clk 0:01:30.5]} 27. Ne4 {[%clk 0:00:38.2]} 27... Qb6
{[%clk 0:01:29.9]} 28. Nxc5 {[%clk 0:00:35]} 28... Rb1 {[%clk 0:01:29.3]} 0-1